bitfinex-derivatives/quotes_ETHF0:USTF0_20241007
["timestamp","ask_amount","ask_price","bid_price","bid_amount"]
[1728279203434,3.2078,2485.1,2484.9,0.2817]
[1728279203630,3.2078,2485.1,2484.9,3.82807224]
[1728279204135,3.2078,2485.1,2484.9,3.54637224]
[1728279204525,3.2078,2485.1,2484.9,3.82808224]
[1728279205133,3.2078,2485.1,2484.9,3.54637224]
[1728279205730,3.2078,2485.1,2484.9,3.82808224]
[1728279206429,3.2078,2485.1,2484.9,3.54637224]
[1728279206936,3.2078,2485.1,2484.9,3.82807224]
[1728279208134,3.2078,2485.1,2484.9,3.54637224]
[1728279208640,3.2078,2485.1,2484.9,3.82807224]
[1728279208930,0.3983,2485.2,2484.9,3.54637224]
[1728279209133,2.07974189,2485.3,2485.1,0.28169]
[1728279209332,2.07974189,2485.3,2485.2,0.8326]
[1728279209724,2.07974189,2485.3,2485.2,7.58677224]
[1728279210227,2.07974189,2485.3,2485.2,7.86845224]
[1728279211048,2.07974189,2485.3,2485.2,14.72245224]
[1728279212132,0.3988,2485.6,2485.5,0.28164]
[1728279212335,3.64268952,2485.8,2485.6,0.28163]
[1728279212530,3.64268952,2485.8,2485.5,6.65800224]
[1728279212734,3.64268952,2485.8,2485.5,6.37637224]
[1728279212936,3.64268952,2485.8,2485.6,0.28163]
[1728279213439,3.64268952,2485.8,2485.6,3.82800224]
[1728279214143,3.64268952,2485.8,2485.6,13.63132484]
[1728279214729,3.64268952,2485.8,2485.6,9.32649484]
[1728279215039,3.64268952,2485.8,2485.6,3.54637224]
[1728279215235,3.64268952,2485.8,2485.6,3.82800224]
[1728279215639,3.64268952,2485.8,2485.6,7.85120224]
[1728279216147,3.64268952,2485.8,2485.6,3.82800224]
[1728279218541,3.64268952,2485.8,2485.6,3.54637224]
[1728279218844,3.64268952,2485.8,2485.6,3.82800224]
[1728279219042,3.64268952,2485.8,2485.6,3.54637224]
[1728279219541,3.64268952,2485.8,2485.6,3.82800224]
[1728279219743,3.64268952,2485.8,2485.6,3.54637224]
[1728279220829,3.64268952,2485.8,2485.6,3.82800224]
[1728279221432,0.4163,2485.9,2485.6,3.82800224]
[1728279223844,0.4163,2485.9,2485.8,0.28161]
[1728279224946,0.4163,2485.9,2485.8,3.82798224]
[1728279226346,0.4163,2485.9,2485.8,7.03578224]
[1728279226542,0.4163,2485.9,2485.8,7.43178224]
[1728279226736,0.3993,2486.3,2485.8,11.17257224]
[1728279226942,0.4193,2486.2,2486.1,0.28157]
[1728279227444,0.4193,2486.2,2486.1,3.82794224]
[1728279228045,0.4193,2486.2,2486.1,3.54637224]
[1728279228547,0.4193,2486.2,2486.1,3.82794224]
[1728279232252,0.4193,2486.2,2486.1,7.85034224]
[1728279233846,0.4193,2486.2,2486.1,8.99934224]
[1728279235048,3.2078,2486.4,2486.1,13.32379967]
[1728279235243,0.4123,2486.5,2486.2,0.3994]
[1728279235452,0.4123,2486.5,2486.4,0.28154]
[1728279235951,0.4123,2486.5,2486.4,3.82791224]
[1728279237254,0.4123,2486.5,2486.4,7.84951224]
[1728279237447,0.4123,2486.5,2486.4,15.50677785]
[1728279239655,2.60823473,2486.9,2486.4,15.22523785]
[1728279239853,0.4079,2486.8,2486.5,2.83]
[1728279240049,0.4079,2486.8,2486.6,0.28152]
[1728279240251,0.4079,2486.8,2486.7,0.68201]
[1728279240757,0.4079,2486.8,2486.7,3.94687224]
[1728279241051,0.4079,2486.8,2486.7,4.22838224]
[1728279242351,0.4079,2486.8,2486.7,5.37738224]
[1728279249857,3.48926,2487.2,2486.7,15.15527224]
[1728279249858,2.08775389,2487.2,2486.7,15.15527224]
[1728279250059,2.47305389,2487.2,2486.9,0.28148]
[1728279250362,0.3853,2487.2,2487.1,0.28146]
[1728279250661,0.3853,2487.2,2487.0,3.48927]
[1728279251166,0.3853,2487.2,2487.0,7.03564224]
[1728279252057,0.3853,2487.2,2487.1,0.28146]
[1728279252562,0.3853,2487.2,2487.1,3.82783224]
[1728279253371,2.08775389,2487.3,2487.1,3.54637224]
[1728279253665,0.397,2487.2,2487.1,3.54637224]
[1728279254461,0.397,2487.2,2487.1,4.84637224]
[1728279254668,0.397,2487.2,2487.1,3.54637224]
[1728279256163,0.397,2487.2,2487.1,5.12783224]
[1728279256761,2.48929847,2487.2,2487.1,5.12783224]
[1728279259568,2.48929847,2487.2,2487.1,5.52843224]
[1728279264166,0.397,2487.2,2487.1,5.52843224]
[1728279265266,2.49003675,2487.2,2487.1,5.52843224]
[1728279269382,0.397,2487.2,2487.1,5.52843224]
[1728279270076,2.49248628,2487.2,2487.1,5.52843224]
[1728279270279,0.397,2487.2,2487.1,5.52843224]
[1728279274177,0.397,2487.2,2487.1,6.61243224]
[1728279275972,0.397,2487.2,2487.1,3.54637224]
[1728279275973,0.67845,2487.2,2487.1,3.54637224]
[1728279276178,0.67846,2487.2,2486.9,0.28148]
[1728279276379,0.67846,2487.2,2486.9,1.58148]
[1728279276582,0.67846,2487.2,2486.9,5.12785224]
[1728279277079,0.28146,2487.1,2486.9,5.93037224]
[1728279277566,0.397,2487.2,2486.9,5.93037224]
[1728279277770,0.67846,2487.2,2486.9,6.21185224]
[1728279279380,0.67846,2487.2,2486.9,5.93037224]
[1728279279381,0.28147,2487.1,2486.9,5.93037224]
[1728279279576,0.28147,2487.1,2486.9,6.21185224]
[1728279279984,0.67846,2487.2,2486.9,6.21185224]
[1728279284389,0.67845,2487.2,2487.0,0.28147]
[1728279284687,0.397,2487.2,2487.0,3.82784224]
[1728279285592,0.67845,2487.2,2487.0,3.54637224]
[1728279285990,0.67846,2487.2,2487.0,3.54637224]
[1728279286387,8.9256,2487.2,2486.9,1.084]
[1728279286591,4.9048,2487.2,2486.9,3.54637224]
[1728279286788,0.28147,2487.0,2486.9,3.54637224]
[1728279286989,0.28147,2487.0,2486.7,1.9687]
[1728279287293,0.67897,2487.0,2486.8,0.28149]
[1728279287695,0.3975,2487.0,2486.8,3.82786224]
[1728279290295,0.3975,2487.0,2486.8,3.54637224]
[1728279290491,0.3975,2487.0,2486.9,0.28148]
[1728279290895,0.69797,2487.1,2486.9,0.28148]
[1728279293097,0.4165,2487.1,2486.9,0.28148]
[1728279293302,0.4165,2487.1,2486.9,0.69108]
[1728279293502,3.88626,2487.2,2486.9,0.69108]
[1728279296103,3.68064315,2487.0,2486.9,0.69108]
[1728279298296,3.68064315,2487.0,2486.9,4.23745224]
[1728279298599,3.15503758,2487.1,2487.0,0.28147]
[1728279298900,3.15503758,2487.2,2487.1,0.28146]
[1728279299203,3.54213758,2487.4,2487.1,0.4229]
[1728279299400,3.15503758,2487.4,2487.3,4.78924]
[1728279299599,3.15503758,2487.4,2487.3,8.33561224]
[1728279299801,3.15503758,2487.4,2487.3,8.72341224]
[1728279302698,3.15477355,2487.4,2487.3,8.44197224]
[1728279303008,3.15477355,2487.4,2487.3,8.72341224]
[1728279303699,3.68064315,2487.5,2487.4,0.28143]
[1728279304100,3.68064315,2487.5,2487.4,3.82780224]
[1728279304604,3.68064315,2487.5,2487.4,12.09039233]
[1728279305305,6.30851038,2487.5,2487.4,12.09039233]
[1728279306115,6.30851038,2487.5,2487.4,13.11739233]
[1728279307207,6.30851038,2487.5,2487.4,12.09039233]
[1728279307400,3.68064315,2487.5,2487.4,6.15480224]
[1728279307599,8.6537225,2487.8,2487.4,6.15480224]
[1728279307803,8.6537225,2487.8,2487.5,0.419]
[1728279307804,3.15173807,2487.7,2487.5,0.419]
[1728279308110,3.15173807,2487.6,2487.5,0.419]
[1728279308303,3.54693807,2487.6,2487.5,3.96537224]
[1728279308713,3.54693807,2487.6,2487.5,4.24679224]
[1728279308905,3.54693807,2487.6,2487.5,4.99237224]
[1728279309210,0.3952,2487.6,2487.5,3.96537224]
[1728279309408,0.3952,2487.6,2487.5,4.24679224]
[1728279309605,3.02105568,2487.6,2487.5,4.24679224]
[1728279312210,3.02105568,2487.6,2487.5,3.96537224]
[1728279312414,5.9966,2487.6,2487.3,3.5956]
[1728279312710,1.97661,2487.6,2487.3,7.14197224]
[1728279314213,0.3952,2487.6,2487.3,8.44197224]
[1728279314413,0.3952,2487.6,2487.3,8.72340224]
[1728279315210,0.67661,2487.6,2487.3,8.72340224]
[1728279315912,0.67661,2487.6,2487.3,5.51560224]
[1728279316216,0.67661,2487.6,2487.3,8.72340224]
[1728279316812,0.3952,2487.6,2487.3,8.72340224]
[1728279317014,0.3952,2487.6,2487.4,0.28143]
[1728279317215,0.67661,2487.6,2487.3,8.72340224]
[1728279319519,0.67661,2487.6,2487.3,5.51560224]
[1728279319710,0.67661,2487.6,2487.3,8.72340224]
[1728279320721,3.82834807,2487.6,2487.3,8.72340224]
[1728279321018,3.82834807,2487.6,2487.3,5.51560224]
[1728279321224,3.82834807,2487.6,2487.3,8.72340224]
[1728279322021,3.82834807,2487.6,2487.5,1.3]
[1728279324025,3.82834807,2487.6,2487.3,6.18103]
[1728279324315,3.82834807,2487.6,2487.3,9.72740224]
[1728279324513,0.28142,2487.5,2487.3,9.44597224]
[1728279324916,0.28142,2487.5,2487.3,6.23817224]
[1728279325122,3.54693807,2487.6,2487.3,9.72741224]
[1728279325423,0.28142,2487.5,2487.3,9.72741224]
[1728279325921,3.42956446,2487.5,2487.3,9.44597224]
[1728279326120,3.14814446,2487.5,2487.3,9.44597224]
[1728279326315,3.14814446,2487.5,2487.4,0.28143]
[1728279326719,3.54334446,2487.6,2487.4,3.82780224]
[1728279326913,3.54334446,2487.6,2487.5,1.3]
[1728279327115,3.82474446,2487.6,2487.5,1.3]
[1728279328113,8.05114446,2487.6,2487.1,0.4037]
[1728279328313,8.05114446,2487.6,2486.8,0.4209]
[1728279328314,3.2078,2487.3,2486.8,0.4209]
[1728279328522,4.5078,2487.0,2486.7,3.54637224]
[1728279328720,3.42963446,2486.9,2486.7,3.54637224]
[1728279329217,0.3938,2486.8,2486.7,3.54637224]
[1728279329815,0.6753,2486.8,2486.7,3.54637224]
[1728279330320,0.3938,2486.8,2486.7,3.54637224]
[1728279332933,0.6753,2486.8,2486.7,3.54637224]
[1728279333227,0.3938,2486.8,2486.7,3.54637224]
[1728279333820,0.6753,2486.8,2486.7,3.54637224]
[1728279334832,0.3938,2486.8,2486.7,3.54637224]
[1728279339337,8.9232,2486.8,2486.5,0.4147]
[1728279339641,0.28151,2486.7,2486.5,3.96107224]
[1728279339939,0.28153,2486.5,2486.4,0.4209]
[1728279340130,0.28153,2486.5,2486.4,3.96727224]
[1728279340932,0.67462,2486.7,2486.4,3.96727224]
[1728279341137,0.28152,2486.7,2486.4,3.96727224]
[1728279341433,2.62034461,2486.5,2486.4,3.96727224]
[1728279342442,2.90186461,2486.6,2486.4,3.96727224]
[1728279342840,2.62034461,2486.5,2486.4,3.96727224]
[1728279343038,2.90186461,2486.6,2486.4,3.96727224]
[1728279346446,2.09475208,2486.5,2486.4,3.96727224]
[1728279347339,0.28156,2486.3,2485.9,0.28159]
[1728279347539,2.09432266,2486.1,2485.9,0.8041]
[1728279347842,2.09432266,2486.1,2485.9,4.35047224]
[1728279348046,0.4244,2486.0,2485.9,4.35047224]
[1728279348246,0.4244,2486.0,2485.9,4.63207224]
[1728279349247,0.4244,2486.0,2485.9,4.35047224]
[1728279351263,0.70599,2486.0,2485.9,4.35047224]
[1728279351761,0.70599,2486.0,2485.9,3.93087224]
[1728279352758,0.70599,2486.0,2485.9,3.54637224]
[1728279353567,0.28161,2485.8,2485.7,0.7912]
[1728279353865,0.28161,2485.8,2485.7,4.33757224]
[1728279354065,0.28161,2485.8,2485.7,0.7912]
[1728279354468,4.30481,2485.8,2485.7,0.7912]
[1728279358164,5.2979463,2485.9,2485.7,5.63757224]
[1728279358367,5.2979463,2485.9,2485.8,1.3]
[1728279358568,5.2979463,2485.9,2485.8,1.58161]
[1728279358763,5.2979463,2485.9,2485.8,5.12798224]
[1728279358964,5.2979463,2485.9,2485.8,4.84637224]
[1728279360267,5.2979463,2485.9,2485.8,5.12798224]
[1728279360268,2.0901463,2485.9,2485.8,5.12798224]
[1728279360467,2.0901463,2485.9,2485.8,9.15038224]
[1728279360865,0.52270211,2486.0,2485.8,11.83667796]
[1728279361167,2.08954136,2486.4,2486.3,0.28155]
[1728279361372,2.08954136,2486.4,2486.2,1.3]
[1728279361763,2.08954136,2486.4,2486.3,4.0224]
[1728279361965,2.08954136,2486.4,2486.3,8.50705648]
[1728279363570,2.37108136,2486.4,2486.3,4.48465648]
[1728279363767,2.37108136,2486.4,2486.2,1.3]
[1728279363969,0.28155,2486.3,2486.2,1.3]
[1728279364165,0.28155,2486.3,2486.2,0.4047]
[1728279364363,2.37109136,2486.4,2486.2,3.2347]
[1728279364569,0.28155,2486.3,2486.2,3.2347]
[1728279368075,3.609,2486.7,2486.2,3.2347]
[1728279368380,0.28155,2486.3,2486.2,3.2347]
[1728279370481,0.28155,2486.3,2486.2,0.4047]
[1728279376490,9.57697661,2486.7,2486.2,0.4047]
[1728279376491,0.28154,2486.5,2486.2,0.4047]
[1728279376790,0.28154,2486.5,2486.2,0.68626]
[1728279378384,0.28154,2486.4,2486.2,0.4047]
[1728279382495,6.75560183,2486.7,2486.3,2.83]
[1728279382683,6.63591183,2486.7,2486.4,0.69244]
[1728279383587,6.63591183,2486.7,2486.5,2.83]
[1728279383787,6.63591183,2486.7,2486.6,0.4178]
[1728279384487,6.63591183,2486.7,2486.6,1.7178]
[1728279385889,3.14660183,2486.7,2486.6,1.99932]
[1728279387694,3.14660183,2486.7,2486.6,1.7178]
[1728279387883,3.14660183,2486.7,2486.6,3.01032]
[1728279388388,3.14660183,2486.7,2486.6,2.7288]
[1728279388888,3.14660183,2486.7,2486.6,3.01032]
[1728279389291,3.14660183,2486.7,2486.6,2.7288]
[1728279389493,0.4011,2486.8,2486.6,2.7288]
[1728279389692,0.4011,2486.8,2486.7,1.3]
[1728279392291,0.6826,2486.8,2486.7,1.3]
[1728279393898,0.4011,2486.8,2486.7,1.3]
[1728279394899,0.4011,2486.8,2486.7,1.58151]
[1728279395285,2.62228293,2486.9,2486.7,1.3]
[1728279395486,2.62228293,2486.9,2486.8,0.7034]
[1728279399898,2.62228293,2486.9,2486.8,4.7242]
[1728279400091,2.62228293,2486.9,2486.8,9.11193538]
[1728279404606,0.3986,2487.0,2486.9,0.28148]
[1728279404811,0.3986,2487.0,2486.9,1.58148]
[1728279405104,0.3986,2487.0,2486.9,5.79903158]
[1728279405806,0.3986,2487.0,2486.9,5.51755158]
[1728279406510,0.3986,2487.0,2486.3,4.36655936]
[1728279406511,0.2815,2486.8,2486.3,4.36655936]
[1728279406808,3.40766078,2486.7,2486.5,0.28152]
[1728279407011,3.40766078,2486.7,2486.5,1.58152]
[1728279407313,0.3983,2486.6,2486.5,1.58152]
[1728279409814,0.3983,2486.6,2486.5,1.3]
[1728279412717,0.3983,2486.6,2486.5,1.58153]
[1728279413512,0.3983,2486.6,2486.5,9.78694174]
[1728279414512,0.3983,2486.6,2486.5,5.76534174]
[1728279416418,0.3983,2486.6,2486.5,9.78694174]
[1728279416618,0.3983,2486.6,2486.5,5.76534174]
[1728279416820,0.3983,2486.6,2486.5,9.78694174]
[1728279417626,0.3983,2486.6,2486.5,5.76534174]
[1728279420328,3.02146078,2486.6,2486.5,5.76534174]
[1728279421530,3.02146078,2486.6,2486.5,4.18381174]
[1728279421531,3.30298078,2486.6,2486.5,4.18381174]
[1728279421733,0.67982,2486.6,2486.3,2.56955]
[1728279422030,2.62631808,2486.5,2486.3,2.56955]
[1728279422233,2.62631808,2486.5,2486.4,0.28154]
[1728279427238,2.62631808,2486.5,2486.3,2.288]
[1728279427239,2.62631808,2486.5,2486.3,2.56955]
[1728279427839,2.62631808,2486.5,2486.4,0.28154]
[1728279428345,0.3983,2486.6,2486.4,0.28154]
[1728279428637,0.3983,2486.6,2486.3,2.56955]
[1728279428838,0.3983,2486.6,2486.4,0.28154]
[1728279431445,0.3983,2486.6,2486.3,2.288]
[1728279431650,0.3983,2486.6,2486.5,0.28153]
[1728279434745,0.3983,2486.6,2486.5,1.58153]
[1728279441851,0.3983,2486.6,2486.5,1.3]
[1728279442055,0.785,2486.6,2486.5,1.58153]
[1728279446155,0.785,2486.6,2486.5,1.3]
[1728279447557,0.3983,2486.6,2486.5,1.3]
[1728279447762,0.3983,2486.6,2486.5,1.58153]
[1728279450767,3.54991217,2486.6,2486.5,1.58153]
[1728279452466,3.15161217,2486.6,2486.5,6.13745239]
[1728279452764,3.15161217,2486.8,2486.7,0.28151]
[1728279453162,3.54781217,2486.9,2486.8,0.2815]
[1728279453362,3.55521572,2486.9,2486.8,1.5815]
[1728279453568,0.3962,2486.9,2486.8,1.5815]
[1728279458873,0.3962,2486.9,2486.8,1.3]
[1728279462875,0.811,2486.9,2486.8,1.3]
[1728279463876,0.811,2486.9,2486.7,0.2815]
[1728279465880,0.811,2486.9,2486.6,3.0964]
[1728279465881,0.3962,2486.9,2486.8,1.5815]
[1728279470876,0.3962,2486.9,2486.8,1.3]
[1728279471077,0.7818,2486.9,2486.8,1.3]
[1728279471472,1.06328,2486.9,2486.6,3.37791]
[1728279471676,3.94081572,2486.9,2486.6,3.37791]
[1728279473982,4.22229572,2486.9,2486.6,3.37791]
[1728279474282,2.62771718,2486.7,2486.6,3.37791]
[1728279474477,4.22229572,2486.9,2486.6,3.37791]
[1728279474478,3.94081572,2486.9,2486.6,3.37791]
[1728279475171,3.94081572,2486.9,2486.6,3.0964]
[1728279475374,3.94081572,2486.9,2486.6,3.37791]
[1728279475672,3.94081572,2486.9,2486.3,0.36337054]
[1728279475673,0.28152,2486.6,2486.3,0.28154]
[1728279475879,2.62790447,2486.4,2486.3,2.56855]
[1728279477282,0.425,2486.5,2486.1,4.26322235]
[1728279477484,0.28156,2486.2,2486.1,1.05542235]
[1728279477874,4.30396,2486.2,2486.1,1.05542235]
[1728279478084,8.81176,2486.2,2486.1,1.05542235]
[1728279478383,14.81176,2486.2,2486.1,1.05542235]
[1728279478780,0.28158,2486.1,2485.9,1.58121668]
[1728279478981,3.82794865,2486.1,2485.9,1.58121668]
[1728279479181,3.82794865,2486.1,2485.7,6.24965936]
[1728279479381,3.82794865,2486.1,2485.7,2.287]
[1728279480189,0.28159,2486.0,2485.7,2.287]
[1728279480389,0.4068,2485.9,2485.7,2.287]
[1728279482390,0.4068,2485.9,2485.7,2.56862]
[1728279483289,0.4068,2485.9,2485.7,2.287]
[1728279483787,3.82794865,2486.1,2485.8,1.58161]
[1728279483997,2.62194694,2486.0,2485.8,1.58161]
[1728279484883,2.62194694,2486.0,2485.8,1.3]
[1728279485192,2.62194694,2486.0,2485.9,0.2816]
[1728279485885,2.62194694,2486.0,2485.8,1.5816]
[1728279486489,2.62194694,2486.0,2485.9,0.2816]
[1728279487794,2.62194694,2486.0,2485.8,1.3]
[1728279487995,2.62194694,2486.0,2485.8,1.5816]
[1728279489091,3.29932694,2486.1,2485.8,1.5816]
[1728279489294,0.28159,2486.0,2485.8,1.3]
[1728279489688,0.28159,2486.0,2485.6,0.4022]
[1728279489893,1.3,2485.8,2485.6,0.4022]
[1728279490391,0.69382,2485.7,2485.6,0.4022]
[1728279490593,0.4122,2485.7,2485.6,0.4022]
[1728279490798,4.5078,2486.0,2485.8,0.28161]
[1728279490799,2.62194694,2486.0,2485.8,0.28161]
[1728279490990,0.4122,2485.9,2485.8,1.58161]
[1728279491193,0.4122,2485.9,2485.8,1.3]
[1728279491696,0.4122,2485.9,2485.8,1.58161]
[1728279495495,0.8196,2486.2,2486.0,0.28158]
[1728279495687,2.62194694,2486.4,2486.1,1.96997]
[1728279495892,2.62194694,2486.6,2486.4,0.28154]
[1728279496096,10.30747265,2486.8,2486.4,1.3]
[1728279496289,10.58897265,2486.8,2486.5,0.28153]
[1728279496501,10.58897265,2486.8,2486.4,1.58153]
[1728279496806,0.3911,2486.7,2486.4,1.99733]
[1728279497000,0.67261,2486.7,2486.4,1.99733]
[1728279497300,0.3911,2486.7,2486.4,1.99733]
[1728279497697,0.3911,2486.7,2486.4,1.7158]
[1728279497698,0.67261,2486.7,2486.4,1.7158]
[1728279498693,0.67261,2486.7,2486.4,1.99734]
[1728279499698,0.67261,2486.7,2486.4,1.7158]
[1728279500000,0.67261,2486.7,2486.4,1.99734]
[1728279501401,0.28152,2486.6,2486.4,0.4158]
[1728279501599,1.97262,2486.7,2486.3,2.56854]
[1728279501795,1.6911,2486.7,2486.3,1.26854]
[1728279501997,1.6911,2486.7,2486.4,4.64191764]
[1728279502201,1.97261,2486.7,2486.4,4.64191764]
[1728279503105,1.97261,2486.7,2486.4,4.92345764]
[1728279503307,1.6911,2486.7,2486.4,4.64191764]
[1728279503604,8.5294,2486.6,2486.1,1.65597]
[1728279503804,1.58155,2486.4,2486.1,1.65597]
[1728279504000,0.8272,2486.3,2486.1,1.65597]
[1728279504199,1.2264,2486.3,2486.1,1.65597]
[1728279505304,1.2264,2486.3,2486.1,1.3744]
[1728279505608,1.2264,2486.3,2486.1,1.65597]
[1728279505802,1.2264,2486.3,2486.1,1.3744]
[1728279506109,1.2264,2486.3,2486.1,1.65597]
[1728279506295,1.2264,2486.3,2486.1,0.66997]
[1728279507206,1.2264,2486.3,2486.2,0.28156]
[1728279507404,1.2264,2486.3,2486.1,0.66997]
[1728279508207,0.3992,2486.3,2486.2,0.28156]
[1728279509006,3.01745497,2486.3,2486.2,0.28156]
[1728279512310,0.3992,2486.3,2486.2,0.28156]
[1728279512608,3.01745497,2486.3,2486.2,4.68461603]
[1728279514007,3.02039733,2486.3,2486.2,4.68461603]
[1728279514517,3.02039733,2486.3,2486.2,0.28156]
[1728279514904,3.02039733,2486.3,2486.2,6.05845014]
[1728279515903,2.62119733,2486.3,2486.2,6.05845014]
[1728279516814,2.62312482,2486.5,2486.2,5.77689014]
[1728279517017,2.62312482,2486.5,2486.4,0.28154]
[1728279522023,0.3967,2486.6,2486.4,0.28154]
[1728279524419,2.62523344,2486.5,2486.4,0.28154]
[1728279524825,0.3967,2486.6,2486.4,0.28154]
[1728279527328,2.62522793,2486.5,2486.4,0.28154]
[1728279527823,2.62522793,2486.5,2486.3,2.97225]
[1728279528220,2.62522793,2486.5,2486.3,2.6907]
[1728279528523,0.3967,2486.6,2486.4,4.56725575]
[1728279528820,2.62522042,2486.5,2486.4,4.56725575]
[1728279529126,0.3967,2486.6,2486.4,4.56725575]
[1728279530725,0.3967,2486.6,2486.4,4.28571575]
[1728279531322,0.67822,2486.6,2486.4,4.28571575]
[1728279534321,0.3967,2486.6,2486.4,4.56725575]
[1728279535525,0.3967,2486.6,2486.5,0.28153]
[1728279535721,0.3967,2486.6,2486.5,0.67333]
[1728279535926,0.3967,2486.6,2486.5,4.85877993]
[1728279536630,0.3967,2486.6,2486.5,4.57724993]
[1728279537127,0.3967,2486.6,2486.5,4.85877993]
[1728279561045,4.4183,2486.6,2486.5,2.91064993]
[1728279561340,4.4183,2486.6,2486.3,0.28155]
[1728279561538,0.3967,2486.6,2486.3,1.58155]
[1728279562339,0.67822,2486.6,2486.3,1.3]
[1728279563240,0.67822,2486.6,2486.3,1.58155]
[1728279564145,0.67822,2486.6,2486.3,1.3]
[1728279564546,0.3901,2486.5,2486.3,1.3]
[1728279565344,0.3901,2486.5,2486.3,1.58155]
[1728279568249,3.54516763,2486.5,2486.3,1.58155]
[1728279569051,0.3901,2486.5,2486.3,1.58155]
[1728279572053,0.3901,2486.5,2486.3,1.3]
[1728279572347,0.3901,2486.5,2486.3,1.58155]
[1728279572549,3.94533167,2486.5,2486.3,1.58155]
[1728279573458,3.94533167,2486.5,2486.4,0.28154]
[1728279573859,3.94533167,2486.5,2486.3,1.58154]
[1728279574554,0.7904,2486.5,2486.3,1.58154]
[1728279575458,0.7904,2486.5,2486.4,0.28154]
[1728279575853,3.94533167,2486.5,2486.4,0.28154]
[1728279577162,0.7904,2486.5,2486.4,0.28154]
[1728279577766,3.94533167,2486.5,2486.4,0.28154]
[1728279577968,0.7904,2486.5,2486.4,0.28154]
[1728279579260,0.3901,2486.5,2486.4,0.28154]
[1728279580264,3.54503167,2486.5,2486.4,0.28154]
[1728279581460,3.55163167,2486.6,2486.3,1.3]
[1728279581663,3.55163167,2486.6,2486.5,1.58153]
[1728279581664,0.3967,2486.6,2486.5,1.58153]
[1728279581865,0.3914,2486.8,2486.7,0.28151]
[1728279582065,0.3914,2486.8,2486.7,1.58151]
[1728279582269,0.3914,2486.8,2486.7,6.86598224]
[1728279586062,3.02017738,2486.8,2486.7,6.86598224]
[1728279596281,3.02017738,2486.8,2486.7,4.30047224]
[1728279596584,3.02017738,2486.8,2486.7,5.28347224]
[1728279596784,0.3914,2486.8,2486.7,5.28347224]
[1728279597376,0.3914,2486.8,2486.7,5.56498224]
[1728279598677,0.3914,2486.8,2486.7,5.28347224]
[1728279598980,0.3914,2486.8,2486.7,5.56498224]
[1728279601384,0.3914,2486.8,2486.6,4.47231]
[1728279601686,0.3914,2486.8,2486.6,4.1908]
[1728279601984,0.3914,2486.8,2486.6,4.47231]
[1728279602599,0.3914,2486.8,2486.7,0.28151]
[1728279603683,0.3914,2486.8,2486.6,4.1908]
[1728279603885,0.3914,2486.8,2486.6,3.2078]
[1728279604088,0.6729,2486.8,2486.6,3.2078]
[1728279604582,0.3914,2486.8,2486.6,3.48931]
[1728279604791,0.6729,2486.8,2486.6,3.2078]
[1728279605589,0.3914,2486.8,2486.6,3.2078]
[1728279605793,0.3914,2486.8,2486.6,3.48932]
[1728279606690,0.3914,2486.8,2486.7,0.28151]
[1728279607090,4.413,2486.8,2486.7,0.28151]
[1728279607289,4.413,2486.8,2486.6,3.48931]
[1728279607588,0.3914,2486.8,2486.7,0.28151]
[1728279607988,4.413,2486.8,2486.7,0.28151]
[1728279609290,7.56751215,2486.8,2486.7,0.28151]
[1728279613090,7.56751215,2486.8,2486.5,1.3]
[1728279613286,3.54591215,2486.8,2486.6,0.28151]
[1728279613798,3.54591215,2486.8,2486.6,0.69571]
[1728279614394,0.28153,2486.5,2486.4,3.2078]
[1728279614692,0.28155,2486.4,2486.1,0.28157]
[1728279614886,4.62896215,2486.4,2486.1,0.28157]
[1728279615292,3.15451215,2486.3,2486.1,0.28157]
[1728279615997,4.62895215,2486.4,2486.1,0.28157]
[1728279617696,4.62895215,2486.4,2486.0,1.7142]
[1728279617697,4.34741215,2486.4,2486.0,1.7142]
[1728279617888,2.62487806,2486.2,2486.0,1.7142]
[1728279618087,2.62487806,2486.2,2486.1,0.28157]
[1728279624698,2.62487806,2486.2,2486.0,2.97878]
[1728279626295,2.62487806,2486.2,2486.1,0.28157]
[1728279627402,2.62487806,2486.2,2486.0,1.99578]
[1728279628804,2.62487806,2486.2,2486.1,0.28157]
[1728279630702,2.62487806,2486.3,2486.1,0.28157]
[1728279631003,2.62487806,2486.3,2486.0,1.99578]
[1728279631713,2.62487806,2486.3,2486.1,0.28157]
[1728279634707,2.62123262,2486.3,2486.1,0.28157]
[1728279635608,0.3855,2486.2,2486.1,0.28157]
[1728279639113,0.3855,2486.2,2486.0,1.99579]
[1728279644309,0.3855,2486.2,2486.0,1.7142]
[1728279644509,0.3855,2486.2,2486.0,1.99578]
[1728279646118,0.3855,2486.2,2486.1,0.28157]
[1728279646316,2.62123262,2486.3,2486.0,1.7142]
[1728279646520,2.62123262,2486.3,2486.2,1.58156]
[1728279647219,2.62123262,2486.3,2486.2,6.11903669]
[1728279648119,0.4086,2486.4,2486.2,6.11903669]
[1728279648319,0.4086,2486.4,2486.3,0.4153]
[1728279651816,8.938,2486.4,2485.8,0.982]
[1728279652017,0.28159,2486.0,2485.8,0.982]
[1728279652319,0.28161,2485.8,2485.7,4.61152521]
[1728279652524,0.28161,2485.8,2485.7,0.3828]
[1728279652819,1.58161,2485.8,2485.6,0.3969]
[1728279654318,1.3,2485.7,2485.5,0.3828]
[1728279654525,0.28163,2485.6,2485.3,2.31723024]
[1728279654719,0.28163,2485.6,2485.3,1.05357024]
[1728279654923,0.4245,2485.5,2485.3,1.05357024]
[1728279656028,0.4245,2485.5,2485.3,1.33523024]
[1728279656226,0.4245,2485.5,2485.3,1.05357024]
[1728279656526,0.70614,2485.5,2485.3,1.05357024]
[1728279657126,0.4245,2485.5,2485.3,1.05357024]
[1728279657626,1.58165,2485.4,2485.3,1.05357024]
[1728279657831,5.60485,2485.4,2485.3,1.05357024]
[1728279658131,11.60485,2485.4,2485.3,1.05357024]
[1728279659929,0.28169,2485.1,2484.7,0.3971]
[1728279660132,2.62045082,2484.9,2484.7,0.3971]
[1728279660429,2.62045082,2484.9,2484.7,0.67883]